Cogmind - Beta 9.6 @@@ ROGUE MODE // 2020.05.20 @ 10:22:10 Player: TravelDemon Result: Destroyed by Y-54 Guardian with Flak Gun Performance ------------- Evolutions (3) 1500 Regions Visited (12) 2400 Robots Destroyed (70) 350 Value Destroyed (4054) 4054 Prototype IDs (33) 660 Alien Tech Used (0) 0 Bonus (2332) 2332 TOTAL SCORE: 11296 Bonus ------- High Alert Combat Kills 217 Follower Combat Kills 415 Entered Garrisons 400 Used RIF Installer 1000 Aligned with FarCom 300 Cogmind --------- Core Integrity 0/700 Matter 290/300 Energy 100/100 System Corruption 2% Temperature Cool (0) Movement Treading (180) Ox1 Location -7/Factory Parts ------- > --- POWER (1) -------- (None) > --- PROPULSION (2) --- Advanced Treads Improved Medium Treads > --- UTILITY (7) ------ Large Storage Unit Large Storage Unit Lightpack 2.0 Improved Light Armor Plating Relay Coupler [Duelist] (17) Relay Coupler [Hunter] (10) > --- WEAPON (3) ------- Improved Datajack Axe > --- INVENTORY (36) --- Light Nuclear Core Reinforced Deuterium Engine Light Treads Light Treads Light Treads Improved Medium Treads Improved Medium Treads Improved Medium Treads Improved Titanium Leg Improved Titanium Leg Improved Titanium Leg Improved Titanium Leg High-capacity Storage Unit Advanced Terrain Scanner Improved Melee Analysis Suite Improved Light Armor Plating Improved Focal Shield Hacking Suite Relay Coupler [Grunt] (25) Relay Coupler [Grunt] (26) Relay Coupler [Grunt] (25) Relay Coupler [Grunt] (27) Relay Coupler [Grunt] (34) Relay Coupler [Duelist] (31) Relay Coupler [Sentry] (21) Relay Coupler [Sentry] (28) Relay Coupler [Sentry] (30) Relay Coupler [Sentry] (27) Relay Coupler [Sentry] (21) Relay Coupler [Demolisher] (24) Peak State ------------ > --- POWER ------------ Reinforced Deuterium Engine > --- PROPULSION ------- Armored Treads Improved Medium Treads > --- UTILITY ---------- Large Storage Unit Lightpack 2.0 Advanced Terrain Scanner Improved Terrain Scan Processor Powered Armor Relay Coupler [Grunt] > --- WEAPON ----------- Advanced Plasma Cannon Advanced Plasma Cannon Improved Datajack > --- INVENTORY -------- Light Nuclear Core Light Treads Light Treads Light Treads Advanced Treads Improved Medium Treads Improved Medium Treads Improved Titanium Leg Improved Titanium Leg Improved Titanium Leg Improved Titanium Leg Large Storage Unit High-capacity Storage Unit Improved Focal Shield Hacking Suite Relay Coupler [Swarmer] Relay Coupler [Swarmer] Relay Coupler [Grunt] Relay Coupler [Grunt] Relay Coupler [Grunt] Relay Coupler [Grunt] Relay Coupler [Brawler] Relay Coupler [Duelist] Relay Coupler [Duelist] Relay Coupler [Sentry] Relay Coupler [Sentry] Relay Coupler [Sentry] Relay Coupler [Hunter] [Rating: 70] Favorites ----------- Power Micro Nuclear Core Engine Reinforced Deuterium Engine Power Core Micro Nuclear Core Propulsion Light Treads Treads Light Treads Utility Large Storage Unit Device Advanced Terrain Scanner Storage Large Storage Unit Processor Improved Terrain Scan Processor Hackware Hacking Suite Protection Powered Armor Weapon EM Pulse Gun Energy Gun EM Pulse Gun Energy Cannon Advanced Plasma Cannon Ballistic Gun Heavy Assault Rifle Launcher Mini Grenade Launcher Impact Weapon Flail Slashing Weapon Scythe Special Melee Weapon Improved Datajack Build | -11 -10 -10 -9 -9 -9 -8 -8 -8 -8 -7 -7 -7 ------- Run | Scr Mat Min Mat Min Exi Min Mat Gar Mat Fac Gar Fac Slots Evolved 6 | . . . 2 . . . 2 . . 2 . . Power . | . . . . . . . . . . . . . Propulsion . | . . . . . . . . . . . . . Utility 5 | . . . 1 . . . 2 . . 2 . . Weapon 1 | . . . 1 . . . . . . . . . Parts Attached 76 | 6 7 1 3 . . . 4 13 10 4 28 . Power 8 | 1 2 . . . . . . 2 . 1 2 . Engine 3 | 1 1 . . . . . . . . . 1 . Core 5 | . 1 . . . . . . 2 . 1 1 . Reactor . | . . . . . . . . . . . . . Propulsion 12 | 2 . . 1 . . . . 5 2 . 2 . Treads 12 | 2 . . 1 . . . . 5 2 . 2 . Leg . | . . . . . . . . . . . . . Wheel . | . . . . . . . . . . . . . Hover . | . . . . . . . . . . . . . Flight . | . . . . . . . . . . . . . Utility 37 | 1 2 . 1 . . . 3 2 6 2 20 . Device 3 | . . . . . . . . . 2 . 1 . Storage 7 | 1 2 . 1 . . . 1 . 1 . 1 . Processor 1 | . . . . . . . . . 1 . . . Hackware 15 | . . . . . . . 1 . . . 14 . Protection 11 | . . . . . . . 1 2 2 2 4 . Artifact . | . . . . . . . . . . . . . Weapon 19 | 2 3 1 1 . . . 1 4 2 1 4 . Energy Gun 9 | 1 3 1 1 . . . . 2 . . 1 . Energy Cannon 2 | . . . . . . . . . . . 2 . Ballistic Gun 3 | 1 . . . . . . . 1 1 . . . Ballistic Cannon . | . . . . . . . . . . . . . Launcher 1 | . . . . . . . . 1 . . . . Special Weapon . | . . . . . . . . . . . . . Impact Weapon 1 | . . . . . . . . . 1 . . . Slashing Weapon 2 | . . . . . . . 1 . . . 1 . Piercing Weapon . | . . . . . . . . . . . . . Special Melee Weapon 1 | . . . . . . . . . . 1 . . Unidentified Prototypes . | . . . . . . . . . . . . . Parts Lost 30 | . 4 . . . . . . 11 3 . 12 . Power 6 | . 2 . . . . . . 2 . . 2 . Propulsion 6 | . . . . . . . . 3 1 . 2 . Utility 8 | . . . . . . . . 2 1 . 5 . Weapon 10 | . 2 . . . . . . 4 1 . 3 . Highest Loss Streak 5 | . 2 . . . . . . 5 3 . 4 . Average Slot Usage (%) 86 | . 92 100 88 88 88 88 88 83 89 92 79 76 Engine 2 | . 11 . . . . . . . . . 4 . Core 6 | . . 14 11 11 11 11 9 8 9 7 1 . Treads 18 | . 28 28 22 22 22 22 18 17 18 15 12 15 Device 1 | . . . . . . . . . 2 7 2 . Storage 20 | . 25 28 22 22 22 22 20 18 18 15 19 23 Processor 1 | . . . . . . . . . 2 7 2 . Hackware 5 | . . . . . . . 7 9 4 . 9 15 Protection 5 | . . . . . . . 6 8 7 15 6 7 Energy Gun 12 | . 22 28 33 33 33 33 25 8 4 . . . Ballistic Gun 2 | . 3 . . . . . . . 12 . . . Slashing Weapon 4 | . . . . . . . 1 9 9 7 3 7 Special Melee Weapon 2 | . . . . . . . . . . 6 7 7 Naked Turns . | . . . . . . . . . . . . . Heaviest Build 66 | 10 43 45 59 59 59 59 64 37 55 55 66 44 Greatest Support 50 | 3 40 40 40 20 20 20 40 40 40 40 50 30 Greatest Overweight (x) 3 | 3 3 1 2 2 2 2 3 1 1 1 3 1 Average Overweight (x) . | 1 . 1 1 2 2 2 . . . 1 1 1 Largest Inventory Capacity 38 | 6 14 14 20 18 18 18 38 30 30 30 36 36 Average Capacity 26 | 5 8 14 17 18 18 18 31 30 30 30 33 36 Most Carried 35 | 6 10 10 17 17 18 18 30 30 30 30 35 30 Average Carried 23 | 3 7 9 13 17 17 17 21 28 29 29 31 30 Final Capacity 36 | 6 14 14 18 18 18 18 30 30 30 30 36 36 Final Carried 30 | 6 10 10 17 17 18 17 30 30 30 30 30 30 Class Distribution -------------------- 27% | Mutant 25% | Hauler-Mutant 22% | Bothacker-Mutant 10% | Bothacker-Assassin 7% | Hauler-Skirmisher 4% | Hauler-Assassin Dominant Class ---------------- Mutant | -10/Materials Mutant | -10/Mines Gunner | -9/Materials Mutant | -9/Mines Mutant | -9/Exiles Skirmisher | -8/Mines Hauler-Skirmisher | -8/Materials Hauler-Mutant | -8/Garrison Hauler-Mutant | -8/Materials Bothacker-Assassin | -7/Factory Bothacker-Mutant | -7/Garrison Bothacker-Mutant | -7/Factory Resources | -11 -10 -10 -9 -9 -9 -8 -8 -8 -8 -7 -7 -7 ----------- Run | Scr Mat Min Mat Min Exi Min Mat Gar Mat Fac Gar Fac Matter Collected 1079 | 134 234 10 30 . . . 30 235 93 . 313 . Remotely . | . . . . . . . . . . . . . Salvage Created 2483 | . 663 78 20 . . 60 280 758 350 . 274 . Parts 145 | . 38 9 1 . . 2 14 51 19 . 11 . Haulers Intercepted 2 | . 2 . . . . . . . . . . . Recyclers Shooed 2 | . 1 . . . . . . . 1 . . . Parts Field Recycled . | . . . . . . . . . . . . . Retrieved Matter . | . . . . . . . . . . . . . Parts Self-Destructed . | . . . . . . . . . . . . . Prevented . | . . . . . . . . . . . . . Kills | -11 -10 -10 -9 -9 -9 -8 -8 -8 -8 -7 -7 -7 ------- Run | Scr Mat Min Mat Min Exi Min Mat Gar Mat Fac Gar Fac Combat Hostiles Destroyed 61 | . 10 5 . . . 1 4 28 8 . 5 . Melee 22 | . . . . . . . . 10 8 . 4 . Guns 21 | . 9 5 . . . 1 3 3 . . . . Cannons 1 | . . . . . . . . . . . 1 . AOE 17 | . 1 . . . . . 1 15 . . . . Classes Destroyed 12 | . 4 1 1 . . 1 1 2 . . 2 . Hauler 2 | . 2 . . . . . . . . . . . Recycler 1 | . 1 . . . . . . . . . . . Operator 3 | . . . 1 . . . 1 . 1 . . . Watcher 3 | . 2 . . . . . 1 . . . . . Swarmer 19 | . . 5 . . . . . 12 2 . . . Grunt 30 | . 10 . . . . . 2 12 3 . 3 . Brawler 2 | . . . . . . . . 1 1 . . . Duelist 1 | . . . . . . . . 1 . . . . Sentry 6 | . . . . . . . 2 2 2 . . . Specialist 1 | . . . . . . . . . . . 1 . Hunter 1 | . . . . . . 1 . . . . . . Behemoth 1 | . . . . . . . . . . . 1 . Best Kill Streak 17 | . 4 3 1 . . 1 2 17 2 . 1 . Combat Bots Only 17 | . 3 3 . . . 1 2 17 2 . 1 . Max Kills in Single Turn 2 | . 1 2 1 . . 1 1 2 1 . 1 . Gunslinging 1 | . . 1 . . . . . . . . . . Exploded 2 | . 1 . . . . . 1 2 . . . . Melee 1 | . . . . . . . . 1 1 . 1 . Uniques/NPCs Destroyed . | . . . . . . . . . . . . . Combat | -11 -10 -10 -9 -9 -9 -8 -8 -8 -8 -7 -7 -7 -------- Run | Scr Mat Min Mat Min Exi Min Mat Gar Mat Fac Gar Fac Damage Taken 6193 | . 445 73 10 . . . 199 1555 830 . 3050 31 Core 993 | . 47 . . . . . 15 186 41 . 687 17 Absorbed by Shields 3 | . . . . . . . . . . . 3 . Core Remaining (%) 84 | 100 . 81 . . . 100 . . 56 . . . Volleys Fired 111 | . 34 5 7 . . 1 18 30 2 . 14 . Largest 3 | . 2 2 3 . . 3 3 2 2 . 2 . Hottest 196 | . 80 80 120 . . 120 120 80 63 . 196 . Shots Fired 223 | . 67 10 21 . . 3 54 39 4 . 25 . Gun 186 | . 67 10 21 . . 3 54 25 4 . 2 . Cannon 23 | . . . . . . . . . . . 23 . Launcher 14 | . . . . . . . . 14 . . . . Special . | . . . . . . . . . . . . . Kinetic 19 | . 16 . . . . . . . 3 . . . Thermal 40 | . 15 . . . . . . . . . 25 . Explosive 14 | . . . . . . . . 14 . . . . Electromagnetic 150 | . 36 10 21 . . 3 54 25 1 . . . Robot Hit Streak 12 | . 12 2 8 . . 5 7 9 3 . 5 . Robot Miss Streak 8 | . 3 2 3 . . . 8 3 1 . 2 . Penetration Max . | . . . . . . . . . . . . . Secondary Targets 4 | . 1 2 1 . . . . . . . . . Max Gunslinging Chain 1 | . 1 1 1 . . . . . . . . . Shots Hit Robots 242 | . 45 4 14 . . 3 29 48 38 . 61 . Core Hits 106 | . 26 5 2 . . 3 12 39 11 . 8 . Critical Hits . | . . . . . . . . . . . . . Critical Kills . | . . . . . . . . . . . . . Critical Parts Destroyed . | . . . . . . . . . . . . . Melee Attacks 183 | . . . . . . . 1 44 67 . 70 1 Impact 2 | . . . . . . . . . . . 2 . Slashing 147 | . . . . . . . 1 44 67 . 34 1 Piercing . | . . . . . . . . . . . . . Sneak Attacks 4 | . . . . . . . . . 4 . . . Combat Hostiles . | . . . . . . . . . . . . . Follow-up Attacks 2 | . . . . . . . . . . . 2 . Damage Inflicted 6230 | . 695 71 120 . . 40 436 2101 1387 . 1380 . Guns 1458 | . 584 54 120 . . 40 383 252 25 . . . Cannons 565 | . . . . . . . . . . . 565 . Explosions 1291 | . 111 . . . . . 53 1127 . . . . Melee 2899 | . . . . . . . . 722 1362 . 815 . Ramming 17 | . . 17 . . . . . . . . . . Kinetic 157 | . 143 . . . . . . . 14 . . . Thermal 897 | . 208 . . . . . 53 71 . . 565 . Explosive 1056 | . . . . . . . . 1056 . . . . Electromagnetic 1204 | . 344 54 120 . . 40 383 252 11 . . . Impact 59 | . . . . . . . . . . . 59 . Slashing 2840 | . . . . . . . . 722 1362 . 756 . Piercing . | . . . . . . . . . . . . . Highest Corruption 5 | . . . . . . . . . 5 . 2 2 Average Corruption 2 | . . . . . . . . . 5 . 2 2 Corruption Purged . | . . . . . . . . . . . . . Effects 37 | . . . . . . . . . 19 . 14 4 Message Errors 8 | . . . . . . . . . 2 . 5 1 Matter Fused 4 | . . . . . . . . . 4 . . . Heat Flow Errors 9 | . . . . . . . . . 2 . 4 3 Energy Discharges 5 | . . . . . . . . . 3 . 2 . Data Loss (minor) 5 | . . . . . . . . . 3 . 2 . Data Loss (major) 3 | . . . . . . . . . 3 . . . Misfires 1 | . . . . . . . . . 1 . . . Targeting Errors 2 | . . . . . . . . . 1 . 1 . Overload Shots . | . . . . . . . . . . . . . Overflow Damage 353 | . 12 . . . . . . 62 245 . 34 . Projectiles . | . . . . . . . . . . . . . Explosions 63 | . 12 . . . . . . 51 . . . . Melee 290 | . . . . . . . . 11 245 . 34 . Knockbacks . | . . . . . . . . . . . . . Impact . | . . . . . . . . . . . . . Kinetic . | . . . . . . . . . . . . . Secondary . | . . . . . . . . . . . . . Self-Inflicted Damage 322 | . 117 . . . . . 36 169 . . . . Shots 10 | . 3 . . . . . 1 6 . . . . Rammed 1 | . . 1 . . . . . . . . . . Targets Rammed 1 | . . 1 . . . . . . . . . . Kicked . | . . . . . . . . . . . . . Crushed . | . . . . . . . . . . . . . Highest Temperature 664 | . 120 72 264 . . 57 336 115 201 . 664 232 Average Temperature 112 | . 41 33 109 . . 33 102 38 80 . 208 107 Received Heat Transfer 1647 | . 189 . 6 . . . 81 432 360 . 579 . Effects 15 | . . . 2 . . . . . . . 13 . Shutdowns 4 | . . . . . . . . . . . 4 . Energy Bleed 4 | . . . . . . . . . . . 4 . Interference 2 | . . . 2 . . . . . . . . . Damage (minor) 1 | . . . . . . . . . . . 1 . Damage (major) 1 | . . . . . . . . . . . 1 . Damage (core) 3 | . . . . . . . . . . . 3 . Siege Activations . | . . . . . . . . . . . . . Robots Corrupted . | . . . . . . . . . . . . . Combat Hostiles . | . . . . . . . . . . . . . Parts Fried 6 | . . . 1 . . . 5 . . . . . Impact Corruptions . | . . . . . . . . . . . . . Robots Melted . | . . . . . . . . . . . . . Combat Hostiles . | . . . . . . . . . . . . . Parts Melted 2 | . . . . . . 1 . . . . 1 . Heat Transferred 1175 | . 325 . . . . . . 50 . . 800 . Parts Sabotaged . | . . . . . . . . . . . . . Parts Stolen . | . . . . . . . . . . . . . Parts Stripped . | . . . . . . . . . . . . . Power Chain Reactions 5 | . 3 . . . . . 1 1 . . . . Missiles Intercepted . | . . . . . . . . . . . . . Alert | -11 -10 -10 -9 -9 -9 -8 -8 -8 -8 -7 -7 -7 ------- Run | Scr Mat Min Mat Min Exi Min Mat Gar Mat Fac Gar Fac Peak Influence 959 | . 132 168 150 58 . 47 150 959 496 37 192 54 Average Influence 203 | . 61 129 39 49 . 45 82 675 298 31 98 39 Maximum Alert Level 3 | . . . . . . . . 3 2 . . . Low Security (%) 76 | 100 100 100 100 100 . 100 100 5 38 100 100 100 Level 1 6 | . . . . . . . . 15 28 . . . Level 2 7 | . . . . . . . . 20 32 . . . Level 3 9 | . . . . . . . . 58 . . . . Level 4 . | . . . . . . . . . . . . . Level 5 . | . . . . . . . . . . . . . High Security . | . . . . . . . . . . . . . Max Security . | . . . . . . . . . . . . . Squads Dispatched 11 | . 2 . 4 . . . 3 . 2 . . . Investigation 3 | . 2 . . . . . . . 1 . . . Extermination . | . . . . . . . . . . . . . Reinforcement 8 | . . . 4 . . . 3 . 1 . . . Assault . | . . . . . . . . . . . . . Garrison . | . . . . . . . . . . . . . Intercept . | . . . . . . . . . . . . . Construction Impeded 1 | . . . . . . . 1 . . . . . Haulers Reinforced . | . . . . . . . . . . . . . Stealth | -11 -10 -10 -9 -9 -9 -8 -8 -8 -8 -7 -7 -7 --------- Run | Scr Mat Min Mat Min Exi Min Mat Gar Mat Fac Gar Fac Distress Signals 7 | . 2 1 2 . . . 1 . . . . 1 Communications Jammed . | . . . . . . . . . . . . . Distress Signals . | . . . . . . . . . . . . . Times Spotted 139 | . 18 6 10 . . 1 15 33 12 . 42 2 Peak Tracking Total 9 | . 3 3 5 . . 1 5 9 4 . 6 2 Tactical Retreats 9 | . 1 1 1 . . . . 3 . . 3 . Traps | -11 -10 -10 -9 -9 -9 -8 -8 -8 -8 -7 -7 -7 ------- Run | Scr Mat Min Mat Min Exi Min Mat Gar Mat Fac Gar Fac Traps Triggered 6 | . 1 . . . . . . . . . 5 . Indirectly . | . . . . . . . . . . . . . Trap Hack Attempts . | . . . . . . . . . . . . . Triggered . | . . . . . . . . . . . . . Disarmed . | . . . . . . . . . . . . . Reprogrammed . | . . . . . . . . . . . . . Reused . | . . . . . . . . . . . . . Traps Extracted . | . . . . . . . . . . . . . Installed . | . . . . . . . . . . . . . Triggered . | . . . . . . . . . . . . . Machines | -11 -10 -10 -9 -9 -9 -8 -8 -8 -8 -7 -7 -7 ---------- Run | Scr Mat Min Mat Min Exi Min Mat Gar Mat Fac Gar Fac Machines Disabled 13 | . 3 . . . . . 1 4 . . 5 . Max in Single Turn 1 | . 1 . . . . . 1 1 . . 1 . Garrison Relay 9 | . . . . . . . . 4 . . 5 . Machines Sabotaged . | . . . . . . . . . . . . . Garrisons Compromised . | . . . . . . . . . . . . . Overloaded Fab Kills . | . . . . . . . . . . . . . Fab Network Shutdowns . | . . . . . . . . . . . . . Hacking | -11 -10 -10 -9 -9 -9 -8 -8 -8 -8 -7 -7 -7 --------- Run | Scr Mat Min Mat Min Exi Min Mat Gar Mat Fac Gar Fac Machines Accessed 21 | . 6 . 2 . 1 . 5 . 4 3 . . Terminals 17 | . 6 . 2 . . . 4 . 4 1 . . Fabricators 1 | . . . . . . . . . . 1 . . Repair Stations . | . . . . . . . . . . . . . Recycling Units . | . . . . . . . . . . . . . Scanalyzers . | . . . . . . . . . . . . . Garrison Access 2 | . . . . . . . 1 . . 1 . . Total Hacks 55 | . 18 . 6 . 1 . 11 . 11 8 . . Successful 26 | . 9 . 3 . 1 . 5 . 4 4 . . Failed 28 | . 8 . 3 . . . 6 . 7 4 . . Catastrophic 5 | . 1 . 2 . . . 1 . . 1 . . Database Lockouts 1 | . 1 . . . . . . . . . . . Manual 32 | . 12 . 4 . 1 . 4 . 8 3 . . Terminals 47 | . 18 . 6 . . . 9 . 11 3 . . Fabricators 4 | . . . . . . . . . . 4 . . Repair Stations . | . . . . . . . . . . . . . Recycling Units . | . . . . . . . . . . . . . Scanalyzers . | . . . . . . . . . . . . . Garrison Access 3 | . . . . . . . 2 . . 1 . . Terminal Hacks 16 | . 5 . 3 . 1 . 3 . 3 1 . . Part Schematic 3 | . 1 . 1 . . . . . . 1 . . Robot Analysis 1 | . 1 . . . . . . . . . . . Prototype ID Bank 8 | . 2 . 1 . . . 3 . 2 . . . Unreport Threat 1 | . . . . . . . . . 1 . . . Hauler Manifests 2 | . 1 . 1 . . . . . . . . . EX-Prototype ID Bank 1 | . . . . . 1 . . . . . . . Fabricator Hacks 2 | . . . . . . . . . . 2 . . Network Status 1 | . . . . . . . . . . 1 . . Load Schematic 1 | . . . . . . . . . . 1 . . Repair Station Hacks . | . . . . . . . . . . . . . Recycling Unit Hacks . | . . . . . . . . . . . . . Scanalyzer . | . . . . . . . . . . . . . Garrison Access Hacks 2 | . . . . . . . 1 . . 1 . . Unlock Access 2 | . . . . . . . 1 . . 1 . . Unauthorized Hacks 6 | . 4 . . . . . 1 . 1 . . . Terminals 6 | . 4 . . . . . 1 . 1 . . . Assimilate 1 | . . . . . . . . . 1 . . . Botnet 5 | . 4 . . . . . 1 . . . . . Fabricators . | . . . . . . . . . . . . . Repair Stations . | . . . . . . . . . . . . . Recycling Units . | . . . . . . . . . . . . . Scanalyzers . | . . . . . . . . . . . . . Garrison Access . | . . . . . . . . . . . . . Data Cores Recovered . | . . . . . . . . . . . . . Used . | . . . . . . . . . . . . . Hacking Detections 16 | . 4 . 1 . . . 5 . 3 3 . . Full Trace Events 1 | . . . . . . . . . 1 . . . Feedback Events . | . . . . . . . . . . . . . Feedback Blocked . | . . . . . . . . . . . . . Robot Schematics Acquired . | . . . . . . . . . . . . . Robots Built . | . . . . . . . . . . . . . Matter . | . . . . . . . . . . . . . Time . | . . . . . . . . . . . . . Total Robot Build Rating . | . . . . . . . . . . . . . Part Schematics Acquired 3 | . 1 . 1 . . . . . . 1 . . Parts Built . | . . . . . . . . . . . . . Matter . | . . . . . . . . . . . . . Time . | . . . . . . . . . . . . . Total Part Build Rating . | . . . . . . . . . . . . . Parts Repaired . | . . . . . . . . . . . . . Time . | . . . . . . . . . . . . . Parts Recycled . | . . . . . . . . . . . . . Recycled Matter . | . . . . . . . . . . . . . Retrieved Matter . | . . . . . . . . . . . . . Retrieved Components . | . . . . . . . . . . . . . Parts Scanalyzed . | . . . . . . . . . . . . . Part Schematics Acquired . | . . . . . . . . . . . . . Parts Damaged . | . . . . . . . . . . . . . Bothacking | -11 -10 -10 -9 -9 -9 -8 -8 -8 -8 -7 -7 -7 ------------ Run | Scr Mat Min Mat Min Exi Min Mat Gar Mat Fac Gar Fac Used RIF Installer 2 | . . . . . . . . 1 . . 1 . Coupler Efficiency 1 | . . . . . . . . . . . 1 . Robots Hacked 24 | . . . . . . . . . . . 24 . Non-combat . | . . . . . . . . . . . . . Combat 24 | . . . . . . . . . . . 24 . Robot Hacks Applied 24 | . . . . . . . . . . . 24 . scatter_targeting 1 | . . . . . . . . . . . 1 . streamctrl_high 1 | . . . . . . . . . . . 1 . formatsys_high 22 | . . . . . . . . . . . 22 . Relay Couplers Released 35 | . . . . . . . . 14 . . 21 . Machine Destruction 35 | . . . . . . . . 14 . . 21 . Attached 14 | . . . . . . . . . . . 14 . Robots Rewired . | . . . . . . . . . . . . . Allies Hacked . | . . . . . . . . . . . . . Hacks Repelled . | . . . . . . . . . . . . . Allies | -11 -10 -10 -9 -9 -9 -8 -8 -8 -8 -7 -7 -7 -------- Run | Scr Mat Min Mat Min Exi Min Mat Gar Mat Fac Gar Fac Total Allies 26 | . . 3 . . . . . . . . 23 . Largest Group 3 | . . 3 3 1 1 1 1 . . . 3 1 Highest-Rated Group 81 | . . 40 40 16 16 16 16 . . . 81 21 Highest-Rated Ally 81 | . . 16 16 16 16 16 16 . . . 81 21 Total Orders . | . . . . . . . . . . . . . Ally Attacks 149 | . . . 26 . . 1 1 . . . 115 6 Total Damage 1989 | . . . 279 . . 17 15 . . . 1600 78 Kills 16 | . . . 6 . . . 1 . . . 9 . Allies Corrupted 1 | . . . . . . . . . . . 1 . Allies Melted . | . . . . . . . . . . . . . Intel | -11 -10 -10 -9 -9 -9 -8 -8 -8 -8 -7 -7 -7 ------- Run | Scr Mat Min Mat Min Exi Min Mat Gar Mat Fac Gar Fac Robot Analysis Total 1 | . 1 . . . . . . . . . . . Derelict Logs Recovered 2 | . . 1 . 1 . . . . . . . . Drone Launches . | . . . . . . . . . . . . . Drone Recoveries . | . . . . . . . . . . . . . Exploration | -11 -10 -10 -9 -9 -9 -8 -8 -8 -8 -7 -7 -7 ------------- Run | Scr Mat Min Mat Min Exi Min Mat Gar Mat Fac Gar Fac Turns Passed 8983 | 84 948 401 266 469 448 56 793 1323 1239 204 2466 286 Spaces Moved 4320 | 53 507 212 126 233 224 26 412 666 507 108 1089 157 Core 74 | 53 21 . . . . . . . . . . . Treads 4246 | . 486 212 126 233 224 26 412 666 507 108 1089 157 Legs . | . . . . . . . . . . . . . Wheels . | . . . . . . . . . . . . . Hover . | . . . . . . . . . . . . . Flight . | . . . . . . . . . . . . . Fastest Speed 50 | 50 160 180 180 200 200 200 160 160 160 185 165 180 Average Speed 176 | 133 162 180 184 200 200 200 164 160 174 185 187 180 Slowest Speed 230 | 200 200 180 200 200 200 200 220 180 185 185 230 180 Overloaded Moves . | . . . . . . . . . . . . . Propulsion Burnouts . | . . . . . . . . . . . . . Robots Hopped . | . . . . . . . . . . . . . Cave-ins Triggered . | . . . . . . . . . . . . . Exploration Rate (%) 40 | 3 85 50 19 47 60 10 29 85 45 4 88 6 Regions Visited 12 Branch Regions 4 Pre-discovered Areas . | . . . . . . . . . . . . . Known Exits Taken 2 | . . . . . . . 1 . . 1 . . Unknown Exits Taken 8 | 1 1 1 1 1 1 1 . . 1 . . . Scrap Searched 3 | . . 2 . 1 . . . . . . . . Spaces Dug 28 | . . . . . . . 1 . 26 . . 1 Terrain Destroyed 88 | . 8 . . . . . 3 50 26 . . 1 Melee 28 | . . . . . . . 1 . 26 . . 1 Projectile . | . . . . . . . . . . . . . AOE 60 | . 8 . . . . . 2 50 . . . . Actions | -11 -10 -10 -9 -9 -9 -8 -8 -8 -8 -7 -7 -7 --------- Run | Scr Mat Min Mat Min Exi Min Mat Gar Mat Fac Gar Fac Total 5242 | 64 568 221 144 237 225 29 486 819 762 113 1416 158 Wait 393 | . . 2 1 5 . . 34 45 154 . 152 . Move 4306 | 52 506 211 125 232 223 25 411 664 506 107 1087 157 Hop . | . . . . . . . . . . . . . Pick Up 98 | 6 13 1 7 . 1 1 16 17 11 . 25 . Fast Attach 25 | 6 5 . 1 . . . 1 . 4 2 6 . Attach 33 | . 2 1 1 . . . 3 11 2 2 11 . Detach 5 | . . . 1 . . . 1 . . 2 1 . Swap 18 | . . . 1 . . . . 2 4 . 11 . Drop 39 | . 8 . . . 1 2 1 6 12 . 9 . Fire 111 | . 34 5 7 . . 1 18 30 2 . 14 . Melee 181 | . . . . . . . 1 44 67 . 68 1 Ram . | . . . . . . . . . . . . . Kick . | . . . . . . . . . . . . . Crush 1 | . . 1 . . . . . . . . . . Escape Stasis 10 | . . . . . . . . . . . 10 . Rewire 22 | . . . . . . . . . . . 22 . Trap . | . . . . . . . . . . . . . Miscellaneous . | . . . . . . . . . . . . . Route ------- -11/Scrapyard -10/Materials (discovered 4 exits: *Mat x2 / [*Min x2]) -10/Mines -9/Materials (discovered 2 exits: [*Min] / [*Sto]) -9/Mines -9/Exiles -8/Mines -8/Materials (discovered 2 exits: *Fac / Gar) -8/Garrison (discovered 3 exits: *Mat x3) -8/Materials -7/Factory -7/Garrison (discovered 3 exits: [*Fac x3]) -7/Factory History --------- Turn | Location | Event 6 | -11/Scrapyard | Discovered new exit (range 15) 85 | -11/Scrapyard | Entered Materials 240 | -10/Materials | Discovered new exit (range 11) 348 | -10/Materials | Build established: Mutant 405 | -10/Materials | Discovered new exit (range 15) 492 | -10/Materials | Discovered new exit (range 15) 896 | -10/Materials | Central database locked down 907 | -10/Materials | Discovered new exit (range 8) 1033 | -10/Materials | Entered Mines 1349 | -10/Mines | Learned Materials stockpile data 1355 | -10/Mines | Assisted by bots powering up and referring to "LRC-V3" 1421 | -10/Mines | Discovered new exit (range 7) 1434 | -10/Mines | Entered Materials 1434 | -9/Materials | Accompanied by 3 allies 1434 | -9/Materials | Evolved 2 slots: Utility x1, Weapon x1 1620 | -9/Materials | Met 8R-AWN 1670 | -9/Materials | Discovered new exit (range 12) 1676 | -9/Materials | Discovered new exit (range 12) 1700 | -9/Materials | Entered Mines 1700 | -9/Mines | Accompanied by 1 ally 1702 | -9/Mines | Followed 8R-AWN into the Mines 1732 | -9/Mines | Met a Derelict bent on vengeance 1939 | -9/Mines | Learned Materials terminal intel 2159 | -9/Mines | Discovered new exit (range 5) 2169 | -9/Mines | Entered Exiles 2169 | -9/Exiles | Accompanied by 1 ally 2217 | -9/Exiles | Welcomed by 8R-AWN 2253 | -9/Exiles | Met EX-HEX 2305 | -9/Exiles | Met EX-BIN 2333 | -9/Exiles | Aligned with FarCom system 2335 | -9/Exiles | Given EX-Vault access code 2381 | -9/Exiles | Opened EX-Vault 2400 | -9/Exiles | Found Lightpack 2.0 2441 | -9/Exiles | Warned to stay clear of 0b10 Research branches 2499 | -9/Exiles | Met EX-DEC 2601 | -9/Exiles | Discovered new exit (range 10) 2617 | -9/Exiles | Left Exiles lab with Lightpack 2.0 2617 | -9/Exiles | Entered Mines 2617 | -8/Mines | Accompanied by 1 ally 2663 | -8/Mines | Discovered new exit (range 5) 2673 | -8/Mines | Entered Materials 2673 | -8/Materials | Accompanied by 1 ally 2673 | -8/Materials | Evolved 2 slots: Utility x2 2674 | -8/Materials | Loaded intel: 12 terminal locations 2976 | -8/Materials | Build established: Hauler-Skirmisher 3348 | -8/Materials | Discovered new exit (range 12) 3464 | -8/Materials | Identified exit to Garrison 3466 | -8/Materials | Entered Garrison 3526 | -8/Garrison | Triggered checkpoint 3636 | -8/Garrison | Build established: Hauler-Mutant 3646 | -8/Garrison | Garrison Relay disabled 3720 | -8/Garrison | Triggered checkpoint 3748 | -8/Garrison | Triggered checkpoint 3754 | -8/Garrison | Triggered checkpoint 3807 | -8/Garrison | Lost 5 parts (1p2n1u1w) 3828 | -8/Garrison | Destroyed 17 combat bots 3842 | -8/Garrison | Discovered new exit (range 9) 3863 | -8/Garrison | Installed Relay Interface Framework 3908 | -8/Garrison | Triggered checkpoint 4082 | -8/Garrison | Garrison Relay disabled 4228 | -8/Garrison | Discovered new exit (range 10) 4262 | -8/Garrison | Triggered checkpoint 4312 | -8/Garrison | Garrison Relay disabled 4578 | -8/Garrison | Discovered new exit (range 8) 4630 | -8/Garrison | Triggered checkpoint 4702 | -8/Garrison | Garrison Relay disabled 4789 | -8/Garrison | Entered Materials 4829 | -8/Materials | Found Powered Armor 4834 | -8/Materials | Found Powered Armor 4837 | -8/Materials | Found Powered Armor 4840 | -8/Materials | Found Powered Armor 5436 | -8/Materials | Lost 3 parts (1n1u1w) 5917 | -8/Materials | Build established: Hauler-Assassin 6007 | -8/Materials | Discovered new exit (range 5) 6028 | -8/Materials | Entered Factory 6028 | -7/Factory | Evolved 2 slots: Utility x2 6231 | -7/Factory | Identified exit to Garrison 6232 | -7/Factory | Entered Garrison 6314 | -7/Garrison | Build established: Bothacker-Assassin 6344 | -7/Garrison | Triggered checkpoint 6373 | -7/Garrison | Garrison Relay disabled 6472 | -7/Garrison | Triggered checkpoint 6472 | -7/Garrison | Triggered checkpoint 6538 | -7/Garrison | Spotted B-75 Beast 6550 | -7/Garrison | Triggered checkpoint 6673 | -7/Garrison | Garrison Relay disabled 6778 | -7/Garrison | Spotted B-75 Beast 6837 | -7/Garrison | Hijacked Beast 4a control node with streamctrl_high 6852 | -7/Garrison | Lost 4 parts (1p1u2w) 6893 | -7/Garrison | Discovered new exit (range 20) 6935 | -7/Garrison | Destroyed B-75 Beast 6963 | -7/Garrison | Lost 3 parts (1n2u) 7142 | -7/Garrison | Core integrity fell below 50% 7161 | -7/Garrison | Garrison Relay disabled 7380 | -7/Garrison | Discovered new exit (range 9) 7421 | -7/Garrison | Build established: Bothacker-Mutant 7448 | -7/Garrison | Triggered checkpoint 7720 | -7/Garrison | Garrison Relay disabled 7866 | -7/Garrison | Triggered checkpoint 7926 | -7/Garrison | Core integrity fell below 20% 8324 | -7/Garrison | Triggered checkpoint 8330 | -7/Garrison | Garrison Relay disabled 8654 | -7/Garrison | Discovered new exit (range 12) 8682 | -7/Garrison | Expanded RIF knowledge: Coupler Efficiency 8698 | -7/Garrison | Entered Factory 8698 | -7/Factory | Accompanied by 1 ally 8984 | -7/Factory | Destroyed by Y-54 Guardian with Flak Gun Last Messages --------------- 08691_ Jacked H-55 Commando... >>formatsys_high Rerouting network defenses. Erasing system data. Installing primary routines, ETC: 6. 08693_ Reactivated Commando 4a. 08696_ Attempting to access garrison exit controls... RIF authorized. LOCATION=UNKNOWN GOAL=ESCAPE 08698_ Receiving FarCom transmissions... 08698_ Detecting nearby Garrison Access. 08738_